[Event "Titled Tuesday Blitz November 22 Late 2022"]
[White "Todev, Simeon"]
[Black "Cortes Orihuela, Javier"]
[WhiteFideId "2925133"]
[BlackFideId "3414329"]
[WhiteElo "1938"]
[BlackElo "2080"]
[Result "1-0"]
[Round "06"]
[TimeControl "180+1"]
[Date "2022.11.23"]
[WhiteClock "0:00:08"]
[BlackClock "0:00:07"]

1. d4 {[%clk 0:02:57]}  d5 {[%clk 0:02:59]} 2. c4 {[%clk 0:02:55]}  dxc4 {[%clk 0:03:00]} 3. e3 {[%clk 0:02:52]}  e5 {[%clk 0:03:00]} 4. Bxc4 {[%clk 0:02:52]}  exd4 {[%clk 0:03:00]} 5. exd4 {[%clk 0:02:52]}  Bd6 {[%clk 0:02:59]} 6. Nf3 {[%clk 0:02:49]}  Nf6 {[%clk 0:02:59]} 7. O-O {[%clk 0:02:50]}  O-O {[%clk 0:02:59]} 8. Nc3 {[%clk 0:02:47]}  Nc6 {[%clk 0:02:57]} 9. h3 {[%clk 0:02:47]}  h6 {[%clk 0:02:53]} 10. Be3 {[%clk 0:02:47]}  Bd7 {[%clk 0:02:45]} 11. Qd2 {[%clk 0:02:47]}  Bf5 {[%clk 0:02:28]} 12. Bxh6 {[%clk 0:02:40]}  gxh6 {[%clk 0:02:28]} 13. Qxh6 {[%clk 0:02:40]}  Nh7 {[%clk 0:01:47]} 14. Nh4 {[%clk 0:02:32]}  Bc2 {[%clk 0:01:07]} 15. Rac1 {[%clk 0:02:09]}  Na5 {[%clk 0:01:05]} 16. Rxc2 {[%clk 0:01:34]}  Nxc4 {[%clk 0:01:05]} 17. Ne4 {[%clk 0:01:34]}  f5 {[%clk 0:00:42]} 18. Qe6+ {[%clk 0:00:52]}  Kh8 {[%clk 0:00:16]} 19. Ng6+ {[%clk 0:00:47]}  Kg7 {[%clk 0:00:16]} 20. Nxf8 {[%clk 0:00:47]}  Qxf8 {[%clk 0:00:16]} 21. Nxd6 {[%clk 0:00:36]}  Nxd6 {[%clk 0:00:14]} 22. Rxc7+ {[%clk 0:00:28]}  Nf7 {[%clk 0:00:14]} 23. Re1 {[%clk 0:00:20]}  Ng5 {[%clk 0:00:13]} 24. Qxf5 {[%clk 0:00:18]}  Kg8 {[%clk 0:00:10]} 25. Ree7 {[%clk 0:00:14]}  Re8 {[%clk 0:00:09]} 26. Qg6+ {[%clk 0:00:11]}  Kh8 {[%clk 0:00:08]} 27. Rxf7 {[%clk 0:00:09]}  Nxf7 {[%clk 0:00:08]} 28. Rxf7 {[%clk 0:00:10]}  Re1+ {[%clk 0:00:07]} 29. Kh2 {[%clk 0:00:09]}  Qb8+ {[%clk 0:00:07]} 30. g3 {[%clk 0:00:08]} 1-0


[Site "https://www.chess.com"]

[Event "Titled Tuesday Blitz November 22 Late 2022"]
[White "Tomaszewski, Kacper"]
[Black "Artemenko, Oleg"]
[WhiteFideId "1127373"]
[BlackFideId "14201798"]
[WhiteElo "2211"]
[BlackElo "2287"]
[Result "0-1"]
[Round "06"]
[TimeControl "180+1"]
[Date "2022.11.23"]
[WhiteClock "0:00:03"]
[BlackClock "0:00:34"]

1. Nf3 {[%clk 0:03:00]}  e6 {[%clk 0:03:00]} 2. e4 {[%clk 0:02:56]}  d5 {[%clk 0:03:00]} 3. e5 {[%clk 0:02:56]}  c5 {[%clk 0:03:00]} 4. c3 {[%clk 0:02:57]}  Nc6 {[%clk 0:03:01]} 5. Na3 {[%clk 0:02:54]}  c4 {[%clk 0:02:58]} 6. b3 {[%clk 0:02:45]}  cxb3 {[%clk 0:02:50]} 7. axb3 {[%clk 0:02:45]}  Nge7 {[%clk 0:02:44]} 8. d4 {[%clk 0:02:43]}  Ng6 {[%clk 0:02:38]} 9. Bd3 {[%clk 0:02:40]}  Be7 {[%clk 0:02:37]} 10. O-O {[%clk 0:02:39]}  O-O {[%clk 0:02:36]} 11. Nc2 {[%clk 0:02:29]}  Bd7 {[%clk 0:02:34]} 12. c4 {[%clk 0:02:26]}  dxc4 {[%clk 0:02:33]} 13. bxc4 {[%clk 0:02:27]}  Qc7 {[%clk 0:02:30]} 14. Bb2 {[%clk 0:02:25]}  Rfd8 {[%clk 0:02:30]} 15. Re1 {[%clk 0:02:22]}  Be8 {[%clk 0:02:14]} 16. Qd2 {[%clk 0:02:11]}  a5 {[%clk 0:02:08]} 17. Qe3 {[%clk 0:02:05]}  Nb4 {[%clk 0:02:06]} 18. Nxb4 {[%clk 0:02:04]}  axb4 {[%clk 0:02:06]} 19. Rxa8 {[%clk 0:02:03]}  Rxa8 {[%clk 0:02:06]} 20. d5 {[%clk 0:02:01]}  Bc5 {[%clk 0:02:06]} 21. Bd4 {[%clk 0:01:51]}  Bxd4 {[%clk 0:01:31]} 22. Qxd4 {[%clk 0:01:47]}  exd5 {[%clk 0:01:30]} 23. cxd5 {[%clk 0:01:47]}  Qc3 {[%clk 0:01:30]} 24. Bxg6 {[%clk 0:01:32]}  hxg6 {[%clk 0:01:27]} 25. h4 {[%clk 0:01:26]}  Qxd4 {[%clk 0:01:22]} 26. Nxd4 {[%clk 0:01:26]}  Ra5 {[%clk 0:01:23]} 27. d6 {[%clk 0:01:26]}  Rd5 {[%clk 0:01:19]} 28. Nf3 {[%clk 0:00:37]}  b3 {[%clk 0:01:17]} 29. Rb1 {[%clk 0:00:36]}  Ba4 {[%clk 0:01:13]} 30. Kf1 {[%clk 0:00:34]}  f6 {[%clk 0:01:03]} 31. exf6 {[%clk 0:00:18]}  gxf6 {[%clk 0:01:04]} 32. Ke2 {[%clk 0:00:16]}  Bb5+ {[%clk 0:01:04]} 33. Ke3 {[%clk 0:00:16]}  Bc4 {[%clk 0:01:01]} 34. Nd4 {[%clk 0:00:12]}  Rxd6 {[%clk 0:00:49]} 35. Rb2 {[%clk 0:00:12]}  Kg7 {[%clk 0:00:42]} 36. g3 {[%clk 0:00:13]}  f5 {[%clk 0:00:42]} 37. f4 {[%clk 0:00:12]}  Kh6 {[%clk 0:00:41]} 38. Rd2 {[%clk 0:00:12]}  Kh5 {[%clk 0:00:39]} 39. Nxb3 {[%clk 0:00:08]}  Re6+ {[%clk 0:00:38]} 40. Kd4 {[%clk 0:00:07]}  Bxb3 {[%clk 0:00:38]} 41. Rb2 {[%clk 0:00:07]}  Ba4 {[%clk 0:00:32]} 42. Rxb7 {[%clk 0:00:07]}  Kg4 {[%clk 0:00:33]} 43. h5 {[%clk 0:00:05]}  gxh5 {[%clk 0:00:33]} 44. Rg7+ {[%clk 0:00:04]}  Kh3 {[%clk 0:00:33]} 45. Rg5 {[%clk 0:00:03]}  Bc2 {[%clk 0:00:34]} 46. Rxh5+ {[%clk 0:00:03]}  Kxg3 {[%clk 0:00:34]} 47. Kc3 {[%clk 0:00:03]}  Be4 {[%clk 0:00:34]} 48. Kd4 {[%clk 0:00:02]}  Kxf4 {[%clk 0:00:33]} 49. Rh8 {[%clk 0:00:03]}  Rd6+ {[%clk 0:00:33]} 50. Kc5 {[%clk 0:00:02]}  Rd1 {[%clk 0:00:34]} 51. Kc4 {[%clk 0:00:03]}  Ke3 {[%clk 0:00:34]} 52. Re8 {[%clk 0:00:03]}  f4 {[%clk 0:00:34]} 0-1


[Site "https://www.chess.com"]

[Event "Titled Tuesday Blitz November 22 Late 2022"]
[White "Torres Dominguez, David"]
[Black "Shapiro, Daniel"]
[WhiteFideId "2220857"]
[BlackFideId "2001780"]
[WhiteElo "2037"]
[BlackElo "2297"]
[Result "0-1"]
[Round "06"]
[TimeControl "180+1"]
[Date "2022.11.23"]
[WhiteClock "0:00:01"]
[BlackClock "0:00:08"]

1. e4 {[%clk 0:03:00]}  c5 {[%clk 0:02:59]} 2. Nf3 {[%clk 0:03:01]}  e6 {[%clk 0:02:58]} 3. d4 {[%clk 0:03:01]}  cxd4 {[%clk 0:02:59]} 4. Nxd4 {[%clk 0:03:02]}  a6 {[%clk 0:02:59]} 5. Bd3 {[%clk 0:03:00]}  g6 {[%clk 0:02:59]} 6. O-O {[%clk 0:02:57]}  Bg7 {[%clk 0:02:59]} 7. Be3 {[%clk 0:02:51]}  Ne7 {[%clk 0:02:58]} 8. Qd2 {[%clk 0:02:47]}  Nbc6 {[%clk 0:02:58]} 9. Nxc6 {[%clk 0:02:46]}  bxc6 {[%clk 0:02:58]} 10. Nc3 {[%clk 0:02:39]}  d5 {[%clk 0:02:58]} 11. Bh6 {[%clk 0:02:34]}  O-O {[%clk 0:02:57]} 12. Bxg7 {[%clk 0:02:33]}  Kxg7 {[%clk 0:02:58]} 13. f4 {[%clk 0:02:21]}  Qb6+ {[%clk 0:02:41]} 14. Kh1 {[%clk 0:02:20]}  Qxb2 {[%clk 0:02:35]} 15. Rab1 {[%clk 0:01:40]}  Qa3 {[%clk 0:02:34]} 16. Rb3 {[%clk 0:01:32]}  Qa5 {[%clk 0:02:28]} 17. Qf2 {[%clk 0:01:29]}  f5 {[%clk 0:01:59]} 18. Qd4+ {[%clk 0:01:27]}  Kg8 {[%clk 0:01:59]} 19. exd5 {[%clk 0:01:15]}  Nxd5 {[%clk 0:01:28]} 20. Na4 {[%clk 0:01:09]}  Qc7 {[%clk 0:01:12]} 21. Nc5 {[%clk 0:01:06]}  Re8 {[%clk 0:01:06]} 22. g3 {[%clk 0:01:01]}  e5 {[%clk 0:01:05]} 23. fxe5 {[%clk 0:01:00]}  Qxe5 {[%clk 0:01:01]} 24. Qxe5 {[%clk 0:00:57]}  Rxe5 {[%clk 0:01:01]} 25. Rfb1 {[%clk 0:00:51]}  Be6 {[%clk 0:00:37]} 26. Rb8+ {[%clk 0:00:50]}  Rxb8 {[%clk 0:00:36]} 27. Rxb8+ {[%clk 0:00:51]}  Kg7 {[%clk 0:00:36]} 28. Nxa6 {[%clk 0:00:39]}  f4 {[%clk 0:00:34]} 29. Rb7+ {[%clk 0:00:29]}  Kf6 {[%clk 0:00:32]} 30. Nc5 {[%clk 0:00:24]}  Re1+ {[%clk 0:00:17]} 31. Kg2 {[%clk 0:00:23]}  Bf5 {[%clk 0:00:15]} 32. Bxf5 {[%clk 0:00:20]}  Kxf5 {[%clk 0:00:14]} 33. gxf4 {[%clk 0:00:20]}  Nxf4+ {[%clk 0:00:14]} 34. Kf2 {[%clk 0:00:20]}  Re2+ {[%clk 0:00:14]} 35. Kf3 {[%clk 0:00:19]}  Rxc2 {[%clk 0:00:10]} 36. Rf7+ {[%clk 0:00:17]}  Ke5 {[%clk 0:00:09]} 37. Nd7+ {[%clk 0:00:15]}  Ke6 {[%clk 0:00:09]} 38. Rxf4 {[%clk 0:00:14]}  Kxd7 {[%clk 0:00:09]} 39. Ra4 {[%clk 0:00:14]}  Kd6 {[%clk 0:00:09]} 40. h4 {[%clk 0:00:12]}  Rc3+ {[%clk 0:00:08]} 41. Kg4 {[%clk 0:00:12]}  h5+ {[%clk 0:00:08]} 42. Kg5 {[%clk 0:00:11]}  Rg3+ {[%clk 0:00:08]} 43. Kh6 {[%clk 0:00:10]}  c5 {[%clk 0:00:09]} 44. Ra6+ {[%clk 0:00:10]}  Kd5 {[%clk 0:00:09]} 45. a4 {[%clk 0:00:05]}  c4 {[%clk 0:00:08]} 46. a5 {[%clk 0:00:05]}  c3 {[%clk 0:00:09]} 47. Ra8 {[%clk 0:00:01]}  Rg4 {[%clk 0:00:08]} 0-1


[Site "https://www.chess.com"]

[Event "Titled Tuesday Blitz November 22 Late 2022"]
[White "Weetik, Vjacheslav"]
[Black "Al-Tarboush, Ward"]
[WhiteFideId "4153472"]
[BlackFideId "7601450"]
[WhiteElo "2469"]
[BlackElo "2273"]
[Result "1-0"]
[Round "06"]
[TimeControl "180+1"]
[Date "2022.11.23"]
[WhiteClock "0:00:14"]
[BlackClock "0:00:04"]

1. e4 {[%clk 0:02:59]}  e5 {[%clk 0:02:59]} 2. Nf3 {[%clk 0:02:59]}  Nf6 {[%clk 0:02:51]} 3. Nxe5 {[%clk 0:02:55]}  d6 {[%clk 0:02:50]} 4. Nf3 {[%clk 0:02:55]}  Nxe4 {[%clk 0:02:49]} 5. Nc3 {[%clk 0:02:56]}  Nxc3 {[%clk 0:02:49]} 6. dxc3 {[%clk 0:02:57]}  Be7 {[%clk 0:02:45]} 7. Be3 {[%clk 0:02:57]}  Nc6 {[%clk 0:02:44]} 8. Qd2 {[%clk 0:02:58]}  Be6 {[%clk 0:02:44]} 9. O-O-O {[%clk 0:02:53]}  Qd7 {[%clk 0:02:43]} 10. Kb1 {[%clk 0:02:49]}  Bf6 {[%clk 0:02:42]} 11. h4 {[%clk 0:02:47]}  h6 {[%clk 0:02:42]} 12. Bb5 {[%clk 0:02:37]}  a6 {[%clk 0:02:40]} 13. Ba4 {[%clk 0:02:33]}  b5 {[%clk 0:02:39]} 14. Bb3 {[%clk 0:02:33]}  Bxb3 {[%clk 0:02:33]} 15. axb3 {[%clk 0:02:27]}  O-O {[%clk 0:02:33]} 16. Rh3 {[%clk 0:02:04]}  Qf5 {[%clk 0:02:11]} 17. Bxh6 {[%clk 0:01:41]}  gxh6 {[%clk 0:01:59]} 18. Qxh6 {[%clk 0:01:40]}  Bg7 {[%clk 0:01:58]} 19. Rg3 {[%clk 0:01:37]}  Qh7 {[%clk 0:01:58]} 20. Qf4 {[%clk 0:01:20]}  Ne7 {[%clk 0:01:37]} 21. Ng5 {[%clk 0:00:48]}  Qf5 {[%clk 0:01:35]} 22. Qd2 {[%clk 0:00:37]}  f6 {[%clk 0:00:49]} 23. Nf3 {[%clk 0:00:30]}  Kf7 {[%clk 0:00:49]} 24. Re1 {[%clk 0:00:25]}  Rae8 {[%clk 0:00:48]} 25. Nd4 {[%clk 0:00:25]}  Qd5 {[%clk 0:00:40]} 26. Rd3 {[%clk 0:00:09]}  Qh5 {[%clk 0:00:13]} 27. Ne6 {[%clk 0:00:08]}  Bh6 {[%clk 0:00:14]} 28. f4 {[%clk 0:00:07]}  Rg8 {[%clk 0:00:05]} 29. Nxc7 {[%clk 0:00:07]}  Rc8 {[%clk 0:00:05]} 30. Ne6 {[%clk 0:00:03]}  Qg4 {[%clk 0:00:05]} 31. Rxd6 {[%clk 0:00:03]}  Qxg2 {[%clk 0:00:05]} 32. Ng5+ {[%clk 0:00:03]}  Rxg5 {[%clk 0:00:04]} 33. Rxe7+ {[%clk 0:00:04]}  Kxe7 {[%clk 0:00:03]} 34. Rd7+ {[%clk 0:00:04]}  Ke8 {[%clk 0:00:04]} 35. hxg5 {[%clk 0:00:03]}  Qxd2 {[%clk 0:00:03]} 36. Rxd2 {[%clk 0:00:04]}  fxg5 {[%clk 0:00:04]} 37. fxg5 {[%clk 0:00:05]}  Bxg5 {[%clk 0:00:04]} 38. Rd6 {[%clk 0:00:05]}  Ra8 {[%clk 0:00:02]} 39. Rg6 {[%clk 0:00:06]}  Be7 {[%clk 0:00:03]} 40. b4 {[%clk 0:00:06]}  Kf7 {[%clk 0:00:03]} 41. Rb6 {[%clk 0:00:06]}  Bf6 {[%clk 0:00:03]} 42. Ka2 {[%clk 0:00:06]}  Ke7 {[%clk 0:00:03]} 43. Kb3 {[%clk 0:00:06]}  Be5 {[%clk 0:00:04]} 44. Rg6 {[%clk 0:00:06]}  Kd7 {[%clk 0:00:04]} 45. Rg5 {[%clk 0:00:05]}  Bf6 {[%clk 0:00:04]} 46. Rg6 {[%clk 0:00:05]}  Ke6 {[%clk 0:00:04]} 47. Rg1 {[%clk 0:00:06]}  Be5 {[%clk 0:00:04]} 48. Rg6+ {[%clk 0:00:06]}  Kd5 {[%clk 0:00:04]} 49. Rg5 {[%clk 0:00:06]}  Kd6 {[%clk 0:00:04]} 50. Rg6+ {[%clk 0:00:06]}  Kc7 {[%clk 0:00:05]} 51. Rg5 {[%clk 0:00:06]}  Bd6 {[%clk 0:00:04]} 52. Rg6 {[%clk 0:00:07]}  Kc6 {[%clk 0:00:05]} 53. Rh6 {[%clk 0:00:07]}  Rg8 {[%clk 0:00:05]} 54. Rf6 {[%clk 0:00:07]}  Rg2 {[%clk 0:00:04]} 55. Rh6 {[%clk 0:00:07]}  Rg1 {[%clk 0:00:04]} 56. Rf6 {[%clk 0:00:07]}  Rc1 {[%clk 0:00:04]} 57. Rh6 {[%clk 0:00:07]}  Rb1 {[%clk 0:00:04]} 58. Rg6 {[%clk 0:00:07]}  Ra1 {[%clk 0:00:05]} 59. Rh6 {[%clk 0:00:07]}  Rb1 {[%clk 0:00:05]} 60. Rg6 {[%clk 0:00:07]}  Kc7 {[%clk 0:00:05]} 61. Rg7+ {[%clk 0:00:07]}  Kb6 {[%clk 0:00:04]} 62. Rg6 {[%clk 0:00:08]}  Kc6 {[%clk 0:00:05]} 63. Rh6 {[%clk 0:00:08]}  Kd7 {[%clk 0:00:05]} 64. Rh7+ {[%clk 0:00:09]}  Kc8 {[%clk 0:00:05]} 65. Rh6 {[%clk 0:00:10]}  Bf4 {[%clk 0:00:04]} 66. Rxa6 {[%clk 0:00:09]}  Bc1 {[%clk 0:00:04]} 67. c4 {[%clk 0:00:09]}  Rxb2+ {[%clk 0:00:04]} 68. Kc3 {[%clk 0:00:10]}  bxc4 {[%clk 0:00:03]} 69. Rc6+ {[%clk 0:00:10]}  Kb7 {[%clk 0:00:03]} 70. Rxc4 {[%clk 0:00:11]}  Rb1 {[%clk 0:00:03]} 71. Rg4 {[%clk 0:00:10]}  Bb2+ {[%clk 0:00:04]} 72. Kc4 {[%clk 0:00:10]}  Rc1 {[%clk 0:00:03]} 73. Kb3 {[%clk 0:00:10]}  Be5 {[%clk 0:00:03]} 74. c4 {[%clk 0:00:10]}  Rc3+ {[%clk 0:00:03]} 75. Ka4 {[%clk 0:00:11]}  Re3 {[%clk 0:00:03]} 76. Kb5 {[%clk 0:00:11]}  Bc3 {[%clk 0:00:03]} 77. c5 {[%clk 0:00:11]}  Re5 {[%clk 0:00:03]} 78. Rg7+ {[%clk 0:00:11]}  Kc8 {[%clk 0:00:03]} 79. Rh7 {[%clk 0:00:11]}  Re6 {[%clk 0:00:03]} 80. Kc4 {[%clk 0:00:11]}  Bb2 {[%clk 0:00:03]} 81. b5 {[%clk 0:00:12]}  Re4+ {[%clk 0:00:03]} 82. Kd5 {[%clk 0:00:12]}  Rg4 {[%clk 0:00:03]} 83. b6 {[%clk 0:00:12]}  Rg5+ {[%clk 0:00:03]} 84. Kc6 {[%clk 0:00:13]}  Rg6+ {[%clk 0:00:03]} 85. Kb5 {[%clk 0:00:13]}  Bd4 {[%clk 0:00:04]} 86. Rf7 {[%clk 0:00:13]}  Kb8 {[%clk 0:00:04]} 87. Rf8+ {[%clk 0:00:13]}  Kb7 {[%clk 0:00:03]} 88. c6+ {[%clk 0:00:14]}  Rxc6 {[%clk 0:00:04]} 89. Rf7+ {[%clk 0:00:14]}  Kb8 {[%clk 0:00:04]} 90. Kxc6 {[%clk 0:00:15]}  Be3 {[%clk 0:00:04]} 91. Rf8# {[%clk 0:00:14]} 1-0


[Site "https://www.chess.com"]

[Event "Titled Tuesday Blitz November 22 Late 2022"]
[White "Young, Ryan"]
[Black "Ibadov, Dashgyn"]
[WhiteFideId "2049945"]
[BlackFideId "24107514"]
[WhiteElo "2317"]
[BlackElo "2208"]
[Result "1-0"]
[Round "06"]
[TimeControl "180+1"]
[Date "2022.11.23"]
[WhiteClock "0:00:17"]
[BlackClock "0:00:01"]

1. e4 {[%clk 0:03:00]}  c5 {[%clk 0:02:57]} 2. c3 {[%clk 0:03:00]}  e6 {[%clk 0:02:56]} 3. d4 {[%clk 0:02:50]}  d5 {[%clk 0:02:56]} 4. exd5 {[%clk 0:02:49]}  exd5 {[%clk 0:02:53]} 5. Be3 {[%clk 0:02:50]}  cxd4 {[%clk 0:02:47]} 6. Bxd4 {[%clk 0:02:50]}  Nc6 {[%clk 0:02:46]} 7. Nf3 {[%clk 0:02:49]}  Nf6 {[%clk 0:02:44]} 8. Be2 {[%clk 0:02:49]}  Bd6 {[%clk 0:02:41]} 9. O-O {[%clk 0:02:49]}  Nxd4 {[%clk 0:02:40]} 10. Nxd4 {[%clk 0:02:47]}  O-O {[%clk 0:02:39]} 11. Nd2 {[%clk 0:02:45]}  Re8 {[%clk 0:02:38]} 12. Re1 {[%clk 0:02:44]}  a6 {[%clk 0:02:38]} 13. a4 {[%clk 0:02:33]}  h6 {[%clk 0:02:33]} 14. Bf3 {[%clk 0:02:19]}  Rxe1+ {[%clk 0:02:26]} 15. Qxe1 {[%clk 0:02:18]}  Bd7 {[%clk 0:02:19]} 16. a5 {[%clk 0:02:16]}  Qc7 {[%clk 0:02:19]} 17. g3 {[%clk 0:02:12]}  Re8 {[%clk 0:02:18]} 18. Qf1 {[%clk 0:02:08]}  Ne4 {[%clk 0:02:13]} 19. Qd3 {[%clk 0:02:03]}  Nc5 {[%clk 0:01:17]} 20. Qc2 {[%clk 0:01:54]}  Ne6 {[%clk 0:01:10]} 21. N2b3 {[%clk 0:01:47]}  Bc6 {[%clk 0:00:51]} 22. Qd2 {[%clk 0:01:28]}  Be5 {[%clk 0:00:43]} 23. Kg2 {[%clk 0:01:22]}  Bf6 {[%clk 0:00:35]} 24. h3 {[%clk 0:00:54]}  Qd8 {[%clk 0:00:27]} 25. Nxe6 {[%clk 0:00:50]}  fxe6 {[%clk 0:00:24]} 26. Nc5 {[%clk 0:00:49]}  Qd6 {[%clk 0:00:14]} 27. b4 {[%clk 0:00:48]}  e5 {[%clk 0:00:10]} 28. Rd1 {[%clk 0:00:38]}  Rd8 {[%clk 0:00:08]} 29. Kh2 {[%clk 0:00:34]}  Qe7 {[%clk 0:00:08]} 30. Bg4 {[%clk 0:00:29]}  Kh8 {[%clk 0:00:08]} 31. Qe2 {[%clk 0:00:22]}  d4 {[%clk 0:00:08]} 32. cxd4 {[%clk 0:00:21]}  exd4 {[%clk 0:00:06]} 33. Qxe7 {[%clk 0:00:21]}  Bxe7 {[%clk 0:00:07]} 34. Ne6 {[%clk 0:00:18]}  Rd6 {[%clk 0:00:06]} 35. Rxd4 {[%clk 0:00:18]}  Rxd4 {[%clk 0:00:05]} 36. Nxd4 {[%clk 0:00:19]}  Bxb4 {[%clk 0:00:05]} 37. Nxc6 {[%clk 0:00:18]}  bxc6 {[%clk 0:00:06]} 38. Bd7 {[%clk 0:00:18]}  Bxa5 {[%clk 0:00:05]} 39. Bxc6 {[%clk 0:00:18]}  Bb6 {[%clk 0:00:05]} 40. Kg2 {[%clk 0:00:17]}  Kg8 {[%clk 0:00:06]} 41. Ba4 {[%clk 0:00:17]}  Kf7 {[%clk 0:00:06]} 42. f4 {[%clk 0:00:17]}  Ke6 {[%clk 0:00:07]} 43. Kf3 {[%clk 0:00:17]}  Kd5 {[%clk 0:00:07]} 44. g4 {[%clk 0:00:18]}  a5 {[%clk 0:00:07]} 45. h4 {[%clk 0:00:17]}  Kc4 {[%clk 0:00:07]} 46. g5 {[%clk 0:00:17]}  Kb4 {[%clk 0:00:04]} 47. Be8 {[%clk 0:00:14]}  a4 {[%clk 0:00:04]} 48. Bf7 {[%clk 0:00:15]}  a3 {[%clk 0:00:04]} 49. gxh6 {[%clk 0:00:16]}  gxh6 {[%clk 0:00:04]} 50. Kg4 {[%clk 0:00:16]}  Be3 {[%clk 0:00:03]} 51. f5 {[%clk 0:00:15]}  Kc5 {[%clk 0:00:02]} 52. Kh5 {[%clk 0:00:15]}  Kd6 {[%clk 0:00:03]} 53. Kg6 {[%clk 0:00:15]}  Bf2 {[%clk 0:00:02]} 54. h5 {[%clk 0:00:16]}  Be3 {[%clk 0:00:02]} 55. Ba2 {[%clk 0:00:16]}  Bg5 {[%clk 0:00:02]} 56. f6 {[%clk 0:00:17]}  Kd7 {[%clk 0:00:01]} 57. Kg7 {[%clk 0:00:17]} 1-0


[Site "https://www.chess.com"]

[Event "Titled Tuesday Blitz November 22 Late 2022"]
[White "Zakarian, David"]
[Black "Simonovic, Miroslav"]
[WhiteFideId "13301276"]
[BlackFideId "919152"]
[WhiteElo "2305"]
[BlackElo "2043"]
[Result "1-0"]
[Round "06"]
[TimeControl "180+1"]
[Date "2022.11.23"]
[WhiteClock "0:01:07"]
[BlackClock "0:00:23"]

1. e4 {[%clk 0:03:00]}  c5 {[%clk 0:03:00]} 2. b3 {[%clk 0:02:58]}  Nc6 {[%clk 0:03:00]} 3. Bb2 {[%clk 0:02:57]}  e5 {[%clk 0:03:00]} 4. Nc3 {[%clk 0:02:57]}  g6 {[%clk 0:03:00]} 5. f4 {[%clk 0:02:56]}  Bg7 {[%clk 0:02:59]} 6. fxe5 {[%clk 0:02:50]}  Nxe5 {[%clk 0:03:00]} 7. Nf3 {[%clk 0:02:49]}  d6 {[%clk 0:02:59]} 8. Bb5+ {[%clk 0:02:48]}  Bd7 {[%clk 0:02:59]} 9. Bxd7+ {[%clk 0:02:47]}  Qxd7 {[%clk 0:03:00]} 10. O-O {[%clk 0:02:47]}  Ne7 {[%clk 0:02:59]} 11. Kh1 {[%clk 0:02:40]}  O-O {[%clk 0:02:58]} 12. d3 {[%clk 0:02:39]}  f5 {[%clk 0:02:54]} 13. Rb1 {[%clk 0:02:37]}  h6 {[%clk 0:02:29]} 14. exf5 {[%clk 0:02:27]}  gxf5 {[%clk 0:02:28]} 15. Nxe5 {[%clk 0:02:25]}  dxe5 {[%clk 0:02:28]} 16. Qh5 {[%clk 0:02:23]}  Kh7 {[%clk 0:02:22]} 17. Ne2 {[%clk 0:02:22]}  Qe6 {[%clk 0:02:18]} 18. Ng3 {[%clk 0:02:19]}  Qg6 {[%clk 0:02:12]} 19. Rbe1 {[%clk 0:02:19]}  f4 {[%clk 0:02:03]} 20. Qxg6+ {[%clk 0:02:16]}  Nxg6 {[%clk 0:02:03]} 21. Nh5 {[%clk 0:02:15]}  Bh8 {[%clk 0:02:04]} 22. g3 {[%clk 0:02:07]}  Rf5 {[%clk 0:01:57]} 23. g4 {[%clk 0:02:02]}  Rff8 {[%clk 0:01:52]} 24. Re4 {[%clk 0:02:00]}  Rae8 {[%clk 0:01:32]} 25. h3 {[%clk 0:01:58]}  Re6 {[%clk 0:01:27]} 26. Rfe1 {[%clk 0:01:51]}  Rfe8 {[%clk 0:01:27]} 27. Kg1 {[%clk 0:01:48]}  b6 {[%clk 0:01:22]} 28. Kf2 {[%clk 0:01:46]}  R6e7 {[%clk 0:01:22]} 29. a4 {[%clk 0:01:43]}  Kg8 {[%clk 0:01:21]} 30. a5 {[%clk 0:01:42]}  Kf7 {[%clk 0:01:21]} 31. axb6 {[%clk 0:01:39]}  axb6 {[%clk 0:01:22]} 32. Ra1 {[%clk 0:01:39]}  Rb8 {[%clk 0:01:02]} 33. Ra6 {[%clk 0:01:38]}  Rbb7 {[%clk 0:00:59]} 34. Rea4 {[%clk 0:01:29]}  Ke6 {[%clk 0:00:41]} 35. Ra8 {[%clk 0:01:23]}  Kd5 {[%clk 0:00:33]} 36. Nxf4+ {[%clk 0:01:11]}  Nxf4 {[%clk 0:00:32]} 37. Rxh8 {[%clk 0:01:10]}  Nxh3+ {[%clk 0:00:30]} 38. Kg3 {[%clk 0:01:10]}  Nf4 {[%clk 0:00:24]} 39. Rxh6 {[%clk 0:01:08]}  Ne2+ {[%clk 0:00:24]} 40. Kf2 {[%clk 0:01:07]}  Nd4 {[%clk 0:00:23]} 41. c4# {[%clk 0:01:07]} 1-0


[Site "https://www.chess.com"]

[Event "Titled Tuesday Blitz November 22 Late 2022"]
[White "chess50years"]
[Black "De Souza, Cristiano Gomes"]
[BlackFideId "2151758"]
[WhiteElo "2067"]
[BlackElo "2068"]
[Result "1/2-1/2"]
[Round "06"]
[TimeControl "180+1"]
[Date "2022.11.23"]
[WhiteClock "0:00:16"]
[BlackClock "0:00:06"]

1. d4 {[%clk 0:02:59]}  Nf6 {[%clk 0:02:59]} 2. c4 {[%clk 0:02:59]}  g6 {[%clk 0:02:59]} 3. Nc3 {[%clk 0:02:58]}  Bg7 {[%clk 0:02:59]} 4. e4 {[%clk 0:02:58]}  d6 {[%clk 0:02:57]} 5. Nf3 {[%clk 0:02:58]}  O-O {[%clk 0:02:57]} 6. h3 {[%clk 0:02:58]}  e5 {[%clk 0:02:56]} 7. dxe5 {[%clk 0:02:58]}  dxe5 {[%clk 0:02:55]} 8. Qxd8 {[%clk 0:02:58]}  Rxd8 {[%clk 0:02:55]} 9. Bg5 {[%clk 0:02:58]}  Re8 {[%clk 0:02:56]} 10. Nd5 {[%clk 0:02:57]}  Nxd5 {[%clk 0:02:54]} 11. cxd5 {[%clk 0:02:57]}  c6 {[%clk 0:02:55]} 12. Bc4 {[%clk 0:02:57]}  cxd5 {[%clk 0:02:55]} 13. Bxd5 {[%clk 0:02:57]}  Nd7 {[%clk 0:02:54]} 14. Nd2 {[%clk 0:02:48]}  Nb6 {[%clk 0:02:54]} 15. Bb3 {[%clk 0:02:46]}  Be6 {[%clk 0:02:53]} 16. O-O {[%clk 0:02:44]}  Rac8 {[%clk 0:02:49]} 17. Rac1 {[%clk 0:02:43]}  h6 {[%clk 0:02:46]} 18. Be3 {[%clk 0:02:43]}  Bxb3 {[%clk 0:02:43]} 19. axb3 {[%clk 0:02:31]}  Rxc1 {[%clk 0:02:34]} 20. Rxc1 {[%clk 0:02:29]}  Rc8 {[%clk 0:02:29]} 21. Nc4 {[%clk 0:02:17]}  Nxc4 {[%clk 0:02:27]} 22. bxc4 {[%clk 0:02:17]}  a6 {[%clk 0:02:26]} 23. b4 {[%clk 0:01:59]}  Bf8 {[%clk 0:02:24]} 24. c5 {[%clk 0:01:59]}  Rc6 {[%clk 0:02:18]} 25. Kf1 {[%clk 0:01:57]}  Kg7 {[%clk 0:02:16]} 26. Ke2 {[%clk 0:01:57]}  g5 {[%clk 0:02:10]} 27. Kd3 {[%clk 0:01:52]}  Kg6 {[%clk 0:02:05]} 28. Kc4 {[%clk 0:01:47]}  f5 {[%clk 0:01:39]} 29. f3 {[%clk 0:01:32]}  Kf6 {[%clk 0:01:15]} 30. b5 {[%clk 0:01:28]}  axb5+ {[%clk 0:01:13]} 31. Kxb5 {[%clk 0:01:29]}  Ke6 {[%clk 0:01:12]} 32. Rd1 {[%clk 0:01:20]}  Be7 {[%clk 0:01:09]} 33. exf5+ {[%clk 0:01:16]}  Kxf5 {[%clk 0:01:08]} 34. Rd7 {[%clk 0:01:17]}  Re6 {[%clk 0:00:55]} 35. Rxb7 {[%clk 0:01:12]}  e4 {[%clk 0:00:55]} 36. g4+ {[%clk 0:01:06]}  Ke5 {[%clk 0:00:53]} 37. fxe4 {[%clk 0:01:04]}  Kxe4 {[%clk 0:00:53]} 38. Bd2 {[%clk 0:01:00]}  Re5 {[%clk 0:00:47]} 39. Bb4 {[%clk 0:00:57]}  Kf3 {[%clk 0:00:41]} 40. Ra7 {[%clk 0:00:51]}  Kg2 {[%clk 0:00:31]} 41. Ra3 {[%clk 0:00:49]}  Bd8 {[%clk 0:00:23]} 42. Rd3 {[%clk 0:00:47]}  Be7 {[%clk 0:00:19]} 43. Kc4 {[%clk 0:00:46]}  Re4+ {[%clk 0:00:17]} 44. Kb3 {[%clk 0:00:40]}  Kf2 {[%clk 0:00:13]} 45. Ba3 {[%clk 0:00:34]}  Re3 {[%clk 0:00:13]} 46. Kc4 {[%clk 0:00:27]}  Rxd3 {[%clk 0:00:10]} 47. Kxd3 {[%clk 0:00:26]}  Kg3 {[%clk 0:00:10]} 48. c6 {[%clk 0:00:23]}  Bd8 {[%clk 0:00:10]} 49. Bf8 {[%clk 0:00:20]}  Kxh3 {[%clk 0:00:09]} 50. Bxh6 {[%clk 0:00:20]}  Kxg4 {[%clk 0:00:09]} 51. Ke4 {[%clk 0:00:18]}  Kh5 {[%clk 0:00:08]} 52. Bxg5 {[%clk 0:00:16]}  Kxg5 {[%clk 0:00:08]} 53. Kd5 {[%clk 0:00:16]}  Kf6 {[%clk 0:00:08]} 54. Kd6 {[%clk 0:00:16]}  Ba5 {[%clk 0:00:08]} 55. Kd7 {[%clk 0:00:16]}  Ke5 {[%clk 0:00:07]} 56. c7 {[%clk 0:00:16]}  Bxc7 {[%clk 0:00:06]} 1/2-1/2


[Site "https://www.chess.com"]